fUST/lending_fUST_20251204
["ID","MTS","AMOUNT","RATE_DAILY","PERIOD"]
[396191198,1764795050683,-560.35775812,0.00015936,2]
[396191200,1764795050692,-647.97281153,0.00015937,2]
[396191202,1764795050701,-683.60369053,0.00015937,2]
[396191204,1764795050711,-500.0,0.00015971,2]
[396191206,1764795050720,-3000.0,0.00016012,2]
[396191208,1764795050729,-3000.0,0.00016012,2]
[396191210,1764795050739,-3000.0,0.00016012,2]
[396191212,1764795050747,-3000.0,0.00016012,2]
[396191214,1764795050757,-1813.65509127,0.00016012,2]
[396191216,1764795050766,-3000.0,0.00016012,2]
[396191218,1764795050774,-3000.0,0.00016012,2]
[396191220,1764795050783,-535.18826044,0.00016012,2]
[396191222,1764795050793,-3000.0,0.00016012,2]
[396191224,1764795050803,-3000.0,0.00016012,2]
[396191226,1764795050812,-560.0,0.00016044,2]
[396191228,1764795050821,-1600.0,0.00016164,2]
[396191230,1764795050830,-333.0,0.0001619,2]
[396191232,1764795050839,-500.0,0.00016245,2]
[396191234,1764795050848,-720.0,0.000163,2]
[396191236,1764795050857,-169.34130373,0.00016312,8]
[396191238,1764795050866,-8307.8203349,0.00016314,2]
[396191240,1764795050875,-500.0,0.00016438,2]
[396191242,1764795050886,-329.497539,0.00016438,2]
[396191244,1764795050895,-329.497539,0.00016438,2]
[396191246,1764795050904,-329.497539,0.00016438,2]
[396191248,1764795050913,-329.497539,0.00016438,2]
[396191250,1764795050923,-329.497539,0.00016438,2]
[396191252,1764795050935,-329.497539,0.00016438,2]
[396191254,1764795050944,-329.497539,0.00016438,2]
[396191269,1764795051079,-329.497539,0.00016438,2]
[396191272,1764795051089,-329.497539,0.00016438,2]
[396191274,1764795051099,-329.497539,0.00016438,2]
[396191275,1764795051108,-329.497539,0.00016438,2]
[396191277,1764795051118,-329.497539,0.00016438,2]
[396191278,1764795051127,-329.497539,0.00016438,2]
[396191279,1764795051136,-329.497539,0.00016438,2]
[396191280,1764795051145,-329.497539,0.00016438,2]
[396191281,1764795051154,-329.497539,0.00016438,2]
[396191282,1764795051163,-329.497539,0.00016438,2]
[396191283,1764795051171,-329.497539,0.00016438,2]
[396191284,1764795051181,-329.497539,0.00016438,2]
[396191285,1764795051190,-329.497546,0.00016438,2]
[396191286,1764795051200,-1500.0,0.00016438,2]
[396191287,1764795051209,-2500.0,0.00016438,2]
[396191288,1764795051217,-1500.0,0.00016438,2]
[396191289,1764795051227,-2500.0,0.00016438,2]
[396191290,1764795051235,-500.0,0.00016519,2]
[396191291,1764795051244,-3500.0,0.0001656,2]
[396191292,1764795051253,-1500.0,0.0001656,2]
[396191293,1764795051262,-3000.0,0.0001656,2]
[396191294,1764795051271,-3000.0,0.0001656,2]
[396191295,1764795051280,-509.82410523,0.0001656,2]
[396191296,1764795051288,-3000.0,0.0001656,2]
[396191297,1764795051299,-3500.0,0.0001656,2]
[396191298,1764795051307,-3000.0,0.0001656,2]
[396191299,1764795051317,-660.0,0.00016592,2]
[396191300,1764795051326,-2154.0,0.00016599,2]
[396191301,1764795051334,-1359.0,0.00016599,2]
[396191302,1764795051343,-631.0,0.00016599,2]
[396191303,1764795051352,-150.0,0.00016607,2]
[396191304,1764795051361,-500.0,0.00016793,2]
[396191305,1764795051370,-160.0,0.00016888,2]
[396191306,1764795051379,-399.08732633,0.00016888,2]
[396191307,1764795051388,-160.0,0.000169,2]
[396191308,1764795051396,-158.0,0.000169,2]
[396191309,1764795051405,-157.04764861,0.000169,2]
[396191310,1764795051414,-157.04764859,0.000169,2]
[396191311,1764795051423,-157.04764859,0.000169,2]
[396191312,1764795051432,-157.04764859,0.000169,2]
[396191313,1764795051442,-157.04764859,0.000169,2]
[396191315,1764795051451,-169.34130373,0.00016928,10]
[396191317,1764795051460,-150.0,0.0001696,2]
[396191319,1764795051469,-153.0,0.00016986,2]
[396191321,1764795051478,-153.0,0.00016986,2]
[396191323,1764795051488,-153.0,0.00016986,2]
[396191324,1764795051497,-153.0,0.00016986,2]
[396191325,1764795051506,-4434.98955576,0.00017,2]
[396191326,1764795051515,-690.4774433,0.0001704,2]
[396191327,1764795051524,-500.0,0.00017067,2]
[396191328,1764795051534,-289.509962,0.00017108,2]
[396191329,1764795051544,-1000.0,0.00017108,2]
[396191330,1764795051554,-364.8,0.00017129,2]
[396191331,1764795051563,-1152.0,0.0001713,2]
[396191332,1764795051573,-760.0,0.0001714,2]
[396191333,1764795051582,-3372.4898053,0.00017178,2]
[396191334,1764795051591,-800.0,0.0001726,2]
[396191335,1764795051600,-150.0,0.00017317,2]
[396191336,1764795051609,-500.0,0.00017341,2]
[396191337,1764795051619,-20000.0,0.000175,2]
[396191338,1764795051627,-169.34130373,0.00017544,11]
[396191339,1764795051637,-3000.0,0.00017553,7]
[396191340,1764795051646,-800.0,0.00017558,2]
[396191341,1764795051655,-500.0,0.00017615,2]
[396191342,1764795051665,-860.0,0.00017688,2]
[396191343,1764795051674,-1111.05,0.00017709,2]
[396191344,1764795051684,-241.98999005,0.00017726,2]
[396191345,1764795051693,-323.0,0.00017734,2]
[396191346,1764795051703,-157.04764859,0.00017739,2]
[396191347,1764795051712,-364.8,0.00017813,2]
[396191348,1764795051722,-800.0,0.00017876,2]
[396191349,1764795051731,-500.0,0.00017888,2]
[396191350,1764795051740,-161.24318258,0.000179,2]
[396191351,1764795051749,-2000.0,0.00017922,3]
[396191352,1764795051758,-864.0,0.0001793,2]
[396191353,1764795051768,-2000.0,0.00017931,3]
[396191354,1764795051778,-2000.0,0.0001794,3]
[396191355,1764795051787,-2000.0,0.00017948,3]
[396191356,1764795051796,-2000.0,0.00017957,3]
[396191357,1764795051806,-2000.0,0.00017966,3]
[396191358,1764795051816,-2000.0,0.00017975,3]
[396191359,1764795051826,-2000.0,0.00017984,3]
[396191360,1764795051835,-2000.0,0.00017992,3]
[396191361,1764795051844,-1000.0,0.00018,2]
[396191362,1764795051853,-500.33875229,0.00018,2]
[396191363,1764795051863,-2000.0,0.00018001,3]
[396191364,1764795051872,-2000.0,0.0001801,3]
[396191365,1764795051892,-2000.0,0.00018019,3]
[396191366,1764795051908,-2000.0,0.00018028,3]
[396191367,1764795051929,-2000.0,0.00018036,3]
[396191370,1764795051947,-176.53,0.00018042,2]
[396191373,1764795051964,-2000.0,0.00018045,3]
[396191375,1764795051981,-2000.0,0.00018054,3]
[396191378,1764795051999,-2000.0,0.00018063,3]
[396191381,1764795052014,-2000.0,0.00018072,3]
[396191383,1764795052032,-2000.0,0.0001808,3]
[396191386,1764795052051,-2000.0,0.00018089,3]
[396191389,1764795052067,-800.0,0.00018095,2]
[396191391,1764795052081,-2000.0,0.00018098,3]
[396191394,1764795052098,-2000.0,0.00018107,3]
[396191397,1764795052114,-2000.0,0.00018116,3]
[396191398,1764795052129,-2000.0,0.00018124,3]
[396191399,1764795052147,-2000.0,0.00018133,3]
[396191400,1764795052163,-2000.0,0.00018142,3]
[396191402,1764795052180,-2000.0,0.00018151,3]
[396191405,1764795052196,-169.34130373,0.00018159,13]
[396191407,1764795052211,-2000.0,0.0001816,3]
[396191410,1764795052227,-500.0,0.00018162,2]
[396191413,1764795052243,-2000.0,0.00018168,3]
[396191415,1764795052258,-2000.0,0.00018177,3]
[396191417,1764795052272,-800.0,0.00018182,2]
[396191420,1764795052287,-2000.0,0.00018186,3]
[396191423,1764795052301,-2000.0,0.00018195,3]
[396191425,1764795052316,-2000.0,0.00018204,3]
[396191428,1764795052333,-2000.0,0.00018212,3]
[396191430,1764795052348,-2000.0,0.00018221,3]
[396191433,1764795052363,-2000.0,0.0001823,3]
[396191435,1764795052379,-960.0,0.00018236,2]
[396191438,1764795052394,-2000.0,0.00018239,3]
[396191441,1764795052409,-2000.0,0.00018248,3]
[396191443,1764795052424,-2000.0,0.00018256,3]
[396191446,1764795052440,-2000.0,0.00018265,3]
[396191448,1764795052455,-2000.0,0.00018274,3]
[396191451,1764795052469,-2000.0,0.00018283,3]
[396191453,1764795052484,-2000.0,0.00018292,3]
[396191456,1764795052499,-2000.0,0.000183,3]
[396191459,1764795052514,-2000.0,0.00018309,3]
[396191461,1764795052528,-2000.0,0.00018318,3]
[396191464,1764795052544,-2000.0,0.00018327,3]
[396191466,1764795052559,-2000.0,0.00018336,3]
[396191467,1764795052574,-2000.0,0.00018344,3]
[396191468,1764795052589,-2000.0,0.00018353,3]
[396191469,1764795052604,-2000.0,0.00018362,3]
[396191470,1764795052619,-2000.0,0.00018371,3]
[396191471,1764795052633,-2000.0,0.0001838,3]
[396191472,1764795052649,-2000.0,0.00018388,3]
[396191473,1764795052664,-2000.0,0.00018397,3]
[396191474,1764795052679,-2000.0,0.00018406,3]
[396191475,1764795052693,-2000.0,0.00018415,3]
[396191476,1764795052708,-2000.0,0.00018424,3]
[396191477,1764795052724,-2000.0,0.00018432,3]
[396191479,1764795052739,-2000.0,0.00018432,3]
[396191481,1764795052756,-500.0,0.00018436,2]
[396191483,1764795052771,-2000.0,0.00018441,3]
[396191486,1764795052785,-2000.0,0.00018441,3]
[396191488,1764795052800,-626.81976159,0.0001845,3]
[396191491,1764795052815,-2000.0,0.0001845,3]
[396191493,1764795052829,-2000.0,0.0001845,3]
[396191496,1764795052844,-281.968325,0.00018493,2]
[396191499,1764795052858,-364.8,0.00018496,2]
[396191501,1764795052873,-399.08732633,0.000185,3]
[396191504,1764795052887,-399.08732633,0.000185,3]
[396191506,1764795052901,-399.08732633,0.000185,3]
[396191509,1764795052915,-2576.723,0.0001863,2]
[396191511,1764795052933,-3000.0,0.00018649,7]
[396191514,1764795052948,-500.0,0.0001871,2]
[396191517,1764795052962,-157.04764859,0.00018749,2]
[396191519,1764795052978,-211.83,0.00018763,2]
[396191522,1764795052992,-169.34130373,0.00018775,14]
[396191524,1764795053006,-1060.0,0.00018784,2]
[396191527,1764795053023,-1613.0,0.00018809,2]
[396191529,1764795053037,-160.0,0.000189,2]
[396191532,1764795053051,-302.93942142,0.000189,2]
[396191535,1764795053067,-340.2780305,0.00018904,2]
[396191537,1764795053080,-800.0,0.00018957,2]
[396191540,1764795053095,-613.06532463,0.00018984,2]
[396191542,1764795053109,-1000.0,0.00019,2]
[396191545,1764795053125,-14141.0,0.00019,2]
[396191548,1764795053140,-500.0,0.00019,7]
[396191550,1764795053154,-500.0,0.00019,7]
[396191553,1764795053170,-500.0,0.00019,7]
[396191555,1764795053184,-500.0,0.00019,7]
[396191579,1764795053393,-500.0,0.00019,7]
[396191580,1764795053411,-500.0,0.00019,7]
[396191581,1764795053420,-500.0,0.00019,7]
[396191582,1764795053429,-500.0,0.00019,7]
[396191583,1764795053439,-500.0,0.00019,7]
[396191584,1764795053449,-500.0,0.00019,7]
[396191585,1764795053458,-500.0,0.00019,7]
[396191586,1764795053467,-500.0,0.00019,7]
[396191587,1764795053477,-500.0,0.00019,7]
[396191588,1764795053486,-500.0,0.00019,7]
[396191589,1764795053495,-500.0,0.00019,7]
[396191590,1764795053504,-500.0,0.00019,7]
[396191591,1764795053514,-500.0,0.00019,7]
[396191592,1764795053523,-500.0,0.00019,7]
[396191593,1764795053532,-500.0,0.00019,7]
[396191594,1764795053542,-500.0,0.00019,7]
[396191595,1764795053551,-500.0,0.00019,7]
[396191596,1764795053560,-500.0,0.00019,7]
[396191597,1764795053570,-500.0,0.00019,7]
[396191598,1764795053579,-500.0,0.00019,7]
[396191599,1764795053588,-500.0,0.00019,7]
[396191600,1764795053597,-500.0,0.00019,7]
[396191601,1764795053607,-500.0,0.00019,7]
[396191602,1764795053616,-500.0,0.00019,7]
[396191603,1764795053626,-500.0,0.00019,7]
[396191604,1764795053635,-500.0,0.00019,7]
[396191605,1764795053645,-500.0,0.00019,7]
[396191606,1764795053654,-500.0,0.00019,7]
[396191607,1764795053664,-500.0,0.00019,7]
[396191608,1764795053673,-500.0,0.00019,7]
[396191609,1764795053682,-500.0,0.00019,7]
[396191610,1764795053691,-500.0,0.00019,7]
[396191611,1764795053701,-500.0,0.00019,7]
[396191612,1764795053710,-500.0,0.00019,7]
[396191613,1764795053719,-500.0,0.00019,7]
[396191614,1764795053729,-500.0,0.00019,7]
[396191615,1764795053738,-500.0,0.00019,7]
[396191616,1764795053748,-500.0,0.00019,7]
[396191617,1764795053759,-500.0,0.00019,7]
[396191618,1764795053769,-500.0,0.00019,7]
[396191619,1764795053778,-500.0,0.00019,7]
[396191620,1764795053788,-500.0,0.00019,7]
[396191622,1764795053798,-500.0,0.00019,7]
[396191623,1764795053807,-500.0,0.00019,7]
[396191625,1764795053816,-500.0,0.00019,7]
[396191627,1764795053826,-500.0,0.00019,7]
[396191629,1764795053835,-500.0,0.00019,7]
[396191631,1764795053844,-500.0,0.00019,7]
[396191633,1764795053854,-500.0,0.00019,7]
[396191635,1764795053863,-500.0,0.00019,7]
[396191637,1764795053873,-500.0,0.00019,7]
[396191639,1764795053883,-500.0,0.00019,7]
[396191641,1764795053893,-500.0,0.00019,7]
[396191643,1764795053902,-500.0,0.00019,7]
[396191645,1764795053912,-500.0,0.00019,7]
[396191647,1764795053923,-500.0,0.00019,7]
[396191649,1764795053935,-500.0,0.00019,7]
[396191651,1764795053945,-500.0,0.00019,7]
[396191653,1764795053954,-500.0,0.00019,7]
[396191655,1764795053964,-500.0,0.00019,7]
[396191657,1764795053975,-500.0,0.00019,7]
[396191659,1764795053985,-500.0,0.00019,7]
[396191661,1764795053994,-500.0,0.00019,7]
[396191662,1764795054006,-500.0,0.00019,7]
[396191663,1764795054015,-500.0,0.00019,7]
[396191664,1764795054025,-500.0,0.00019,7]
[396191665,1764795054035,-500.0,0.00019,7]
[396191666,1764795054045,-500.0,0.00019,7]
[396191667,1764795054055,-500.0,0.00019,7]
[396191668,1764795054065,-264.68,0.00019,7]
[396191669,1764795054075,-1000.0,0.00019,5]
[396191670,1764795054084,-588.29165633,0.00019068,2]
[396191671,1764795054094,-399.08732633,0.000191,7]
[396191672,1764795054104,-800.0,0.00019104,2]
[396191673,1764795054114,-588.29165633,0.00019151,2]
[396191674,1764795054124,-5000.0,0.00019178,2]
[396191675,1764795054134,-5000.0,0.00019178,2]
[396191676,1764795054144,-2000.00665975,0.00019178,2]
[396191677,1764795054154,-150.0,0.00019178,2]
[396191678,1764795054163,-364.8,0.0001918,2]
[396191679,1764795054174,-3420.81,0.000192,2]
[396191680,1764795054184,-250.0,0.000192,2]
[396191681,1764795054194,-250.0,0.000192,2]
[396191682,1764795054204,-250.0,0.000192,2]
[396191683,1764795054213,-307.8398572,0.00019233,2]
[396191684,1764795054223,-588.29165633,0.0001926,2]
[396191685,1764795054233,-1160.0,0.00019332,2]
[396191686,1764795054243,-588.29165633,0.00019342,2]
[396191687,1764795054253,-169.34130373,0.00019391,16]
[396191688,1764795054263,-588.29165633,0.00019452,2]
[396191689,1764795054273,-800.0,0.00019467,2]
[396191690,1764795054284,-3372.4898053,0.00019476,2]
[396191691,1764795054294,-247.14,0.00019485,2]
[396191692,1764795054304,-800.0,0.00019516,2]
[396191693,1764795054314,-800.0,0.0001953,2]
[396191694,1764795054323,-45.14790976,0.00019534,2]
[396191695,1764795055133,-543.14374657,0.00019534,2]
[396191696,1764795055143,-232.68209425,0.00019551,2]
[396191697,1764795055377,-301.8571292,0.000129,2]
[396191698,1764795055386,-397.1611844,0.000129,2]
[396191699,1764795055395,-142.98276235,0.00016438,2]
[396191700,1764795055693,-216.49493265,0.00016438,2]
[396191701,1764795055703,-144.20502735,0.00016438,2]
[396191702,1764795055716,-215.27266765,0.00016438,2]
[396191703,1764795055725,-359.477695,0.00016438,2]
[396191704,1764795055735,-359.477695,0.00016438,2]
[396191705,1764795055746,-359.477695,0.00016438,2]
[396191706,1764795055757,-359.477695,0.00016438,2]
[396191707,1764795055766,-359.477695,0.00016438,2]
[396191708,1764795055775,-359.477695,0.00016438,2]
[396191709,1764795055785,-359.477695,0.00016438,2]
[396191710,1764795055794,-359.477695,0.00016438,2]
[396191711,1764795055804,-359.477695,0.00016438,2]
[396191712,1764795055813,-359.477695,0.00016438,2]
[396191713,1764795055822,-359.477695,0.00016438,2]
[396191714,1764795055831,-359.477695,0.00016438,2]
[396191715,1764795055841,-359.477695,0.00016438,2]
[396191716,1764795055850,-567.31790575,0.00019551,2]
[396191717,1764795055860,-200.0,0.00019553,2]
[396191718,1764795055869,-179.9460162,0.00019577,2]
[396191719,1764795055880,-2154.0,0.00019599,2]
[396191720,1764795055889,-1359.0,0.00019599,2]
[396191721,1764795055898,-429.8716783,0.00019599,2]
[396191722,1764795110246,5000.0,0.000115,2]
[396191723,1764795126561,5000.0,0.000112,2]
[396191724,1764795139210,1283.13,0.00032876,120]
[396191725,1764795142407,5000.0,0.00011,2]
[396191726,1764795161679,5000.0,0.000107,2]
[396191727,1764795376539,1229.66,0.00032876,120]
[396191728,1764795483496,250.0,0.0002,30]
[396191729,1764795483705,250.0,0.000105,2]
[396191730,1764795542507,10544.0,0.00032876,120]
[396191731,1764795608559,1178.43,0.00032876,120]
[396191733,1764795870595,1129.33,0.00032876,120]
[396191734,1764795885858,982.497346,0.00030137,120]
[396191735,1764795936004,500.0,0.00030137,120]
[396191736,1764795936950,500.0,0.00030411,120]
[396191737,1764795938063,500.0,0.00030685,120]
[396191738,1764795938855,500.0,0.00030959,120]
[396191739,1764795940279,500.0,0.00031233,120]
[396191740,1764795940986,500.0,0.00031507,120]
[396191741,1764795942000,500.0,0.00031781,120]
[396191742,1764795943103,500.0,0.00032055,120]
[396191743,1764795944360,500.0,0.00032329,120]
[396191744,1764795945514,500.0,0.00032603,120]
[396191745,1764796091991,1082.27,0.00032876,120]
[396191791,1764796232295,-150.0,0.00012267,2]
[396191793,1764796232307,-250.0,0.00012267,2]
[396191795,1764796232316,-774.25,0.00012329,2]
[396191797,1764796232326,-300.0,0.00012579,2]
[396191799,1764796232336,-380.0,0.0001258,2]
[396191800,1764796232346,-500.0,0.0001258,2]
[396191802,1764796232355,-500.0,0.0001258,2]
[396191804,1764796232364,-500.0,0.0001258,2]
[396191805,1764796232373,-588.73482745,0.0001258,2]
[396191807,1764796232383,-500.0,0.0001258,2]
[396191808,1764796232392,-550.0,0.0001258,2]
[396191810,1764796232402,-588.28823237,0.0001258,2]
[396191812,1764796232411,-158.15217224,0.0001258,2]
[396191813,1764796232420,-500.0,0.0001258,2]
[396191814,1764796232429,-500.0,0.0001258,2]
[396191815,1764796232439,-500.0,0.0001258,2]
[396191816,1764796232448,-500.0,0.0001258,2]
[396191817,1764796232458,-500.0,0.0001258,2]
[396191818,1764796232468,-500.0,0.0001258,2]
[396191819,1764796232478,-500.0,0.0001258,2]
[396191820,1764796232487,-500.0,0.0001258,2]
[396191821,1764796232497,-500.0,0.0001258,2]
[396191822,1764796232520,-500.0,0.0001258,2]
[396191823,1764796232531,-500.0,0.0001258,2]
[396191824,1764796232540,-500.0,0.0001258,2]
[396191825,1764796232550,-500.0,0.0001258,2]
[396191826,1764796232559,-500.0,0.0001258,2]
[396191827,1764796232569,-500.0,0.0001258,2]
[396191828,1764796232579,-500.0,0.0001258,2]
[396191829,1764796232589,-500.0,0.0001258,2]
[396191830,1764796232599,-500.0,0.0001258,2]
[396191831,1764796232608,-500.0,0.0001258,2]
[396191832,1764796232618,-500.0,0.0001258,2]
[396191833,1764796232628,-500.0,0.0001258,2]
[396191834,1764796232643,-500.0,0.0001258,2]
[396191835,1764796232655,-500.0,0.0001258,2]
[396191836,1764796232663,-500.0,0.0001258,2]
[396191837,1764796232673,-500.0,0.0001258,2]
[396191838,1764796232683,-500.0,0.0001258,2]
[396191839,1764796232693,-500.0,0.0001258,2]
[396191840,1764796232702,-500.0,0.0001258,2]
[396191841,1764796232712,-500.0,0.0001258,2]
[396191842,1764796232721,-500.0,0.0001258,2]
[396191843,1764796232731,-598.39922494,0.0001258,2]
[396191844,1764796232740,-500.0,0.0001258,2]
[396191845,1764796232750,-500.0,0.0001258,2]
[396191846,1764796232759,-500.0,0.0001258,2]
[396191847,1764796232770,-500.0,0.0001258,2]
[396191848,1764796232780,-500.0,0.0001258,2]
[396191849,1764796232790,-500.0,0.0001258,2]
[396191850,1764796232801,-500.0,0.0001258,2]
[396191851,1764796232811,-500.0,0.0001258,2]
[396191852,1764796232820,-500.0,0.0001258,2]
[396191853,1764796232830,-500.0,0.0001258,2]
[396191854,1764796232840,-500.0,0.0001258,2]
[396191855,1764796232851,-500.0,0.0001258,2]
[396191856,1764796232861,-500.0,0.0001258,2]
[396191857,1764796232871,-500.0,0.0001258,2]
[396191858,1764796232879,-500.0,0.0001258,2]
[396191859,1764796232889,-500.0,0.0001258,2]
[396191860,1764796232899,-500.0,0.0001258,2]
[396191861,1764796232908,-500.0,0.0001258,2]
[396191862,1764796232917,-500.0,0.0001258,2]
[396191863,1764796232927,-500.0,0.0001258,2]
[396191864,1764796232937,-500.0,0.0001258,2]
[396191865,1764796232946,-500.0,0.0001258,2]
[396191866,1764796232955,-500.0,0.0001258,2]
[396191867,1764796232964,-500.0,0.0001258,2]
[396191868,1764796232973,-500.0,0.0001258,2]
[396191869,1764796232982,-500.0,0.0001258,2]
[396191870,1764796232992,-500.0,0.0001258,2]
[396191871,1764796233001,-500.0,0.0001258,2]
[396191872,1764796233011,-500.0,0.0001258,2]
[396191873,1764796233020,-154.87075895,0.0001258,2]
[396191874,1764796233030,-500.0,0.0001258,2]
[396191875,1764796233040,-500.0,0.0001258,2]
[396191876,1764796233049,-500.0,0.0001258,2]
[396191877,1764796233059,-500.0,0.0001258,2]
[396191878,1764796233069,-500.0,0.0001258,2]
[396191879,1764796233078,-500.0,0.0001258,2]
[396191880,1764796233087,-500.0,0.0001258,2]
[396191881,1764796233097,-500.0,0.0001258,2]
[396191882,1764796233106,-500.0,0.0001258,2]
[396191883,1764796233116,-500.0,0.0001258,2]
[396191884,1764796233125,-500.0,0.0001258,2]
[396191885,1764796233135,-500.0,0.0001258,2]
[396191886,1764796233145,-500.0,0.0001258,2]
[396191887,1764796233154,-295.43294694,0.0001258,2]
[396191888,1764796233164,-500.0,0.0001258,2]
[396191889,1764796233173,-500.0,0.0001258,2]
[396191890,1764796233182,-500.0,0.0001258,2]
[396191891,1764796233191,-500.0,0.0001258,2]
[396191892,1764796233201,-500.0,0.0001258,2]
[396191893,1764796233210,-500.0,0.0001258,2]
[396191894,1764796233219,-500.0,0.0001258,2]
[396191895,1764796233228,-500.0,0.0001258,2]
[396191896,1764796233238,-500.0,0.0001258,2]
[396191897,1764796233247,-500.0,0.0001258,2]
[396191898,1764796233257,-500.0,0.0001258,2]
[396191899,1764796233271,-500.0,0.0001258,2]
[396191900,1764796233282,-500.0,0.0001258,2]
[396191901,1764796233291,-500.0,0.0001258,2]
[396191902,1764796233301,-300.0,0.00012934,2]
[396191903,1764796233311,-300.0,0.00012934,2]
[396191904,1764796233320,-300.0,0.00012934,2]
[396191905,1764796233329,-300.0,0.00012934,2]
[396191906,1764796233339,-300.0,0.00012934,2]
[396191907,1764796233348,-300.0,0.00012934,2]
[396191908,1764796233358,-300.0,0.00012934,2]
[396191909,1764796233368,-300.0,0.00012934,2]
[396191910,1764796233377,-300.0,0.00012934,2]
[396191911,1764796233386,-300.0,0.00012934,2]
[396191912,1764796233396,-300.0,0.00012934,2]
[396191913,1764796233405,-300.0,0.00012934,2]
[396191914,1764796233415,-300.0,0.00012934,2]
[396191915,1764796233424,-300.0,0.00012934,2]
[396191916,1764796233433,-300.0,0.00012934,2]
[396191917,1764796233443,-600.0,0.00012934,2]
[396191918,1764796233452,-500.0,0.00013273,2]
[396191919,1764796233461,-500.0,0.00013273,2]
[396191920,1764796233470,-500.0,0.00013273,2]
[396191921,1764796233480,-795.046387,0.00013699,2]
[396191922,1764796233489,-500.0,0.00013699,2]
[396191923,1764796233499,-1000.0,0.00013699,2]
[396191924,1764796233509,-1000.0,0.00013699,2]
[396191925,1764796233518,-1000.0,0.00013699,2]
[396191926,1764796233527,-1000.0,0.00013699,2]
[396191927,1764796233537,-1000.0,0.00013699,2]
[396191928,1764796233546,-1000.0,0.00013699,2]
[396191929,1764796233555,-1000.0,0.00013699,2]
[396191930,1764796233565,-1000.0,0.00013699,2]
[396191931,1764796233574,-420.0,0.00013801,2]
[396191932,1764796233584,-1000.0,0.00013821,2]
[396191933,1764796233593,-565.87976377,0.00013821,2]
[396191934,1764796233603,-524.71652456,0.00013821,2]
[396191935,1764796233612,-160.0,0.0001405,2]
[396191936,1764796233622,-720.0,0.00014227,2]
[396191937,1764796233631,-177.0,0.00014267,2]
[396191938,1764796233640,-150.0,0.0001428,2]
[396191939,1764796233650,-1359.0,0.0001428,2]
[396191940,1764796233659,-2154.0,0.0001428,2]
[396191941,1764796233668,-631.0,0.0001428,2]
[396191942,1764796233678,-414.0,0.0001428,2]
[396191943,1764796233688,-1002.62988085,0.00014368,2]
[396191944,1764796233699,-260.0,0.00014598,2]
[396191945,1764796233708,-318.277395,0.00015068,2]
[396191946,1764796233717,-587.0,0.00015142,2]
[396191947,1764796233727,-360.0,0.00015146,2]
[396191948,1764796233736,-150.0,0.00015155,2]
[396191949,1764796233746,-864.0,0.0001565,2]
[396191950,1764796233755,-460.0,0.00015694,2]
[396191951,1764796233765,-150.0,0.00015877,2]
[396191952,1764796233775,-500.0,0.00015937,2]